Cogmind - Beta 16 @@@ ROGUE MODE // 2025.12.30 @ 18:58:19 Player: doki Result: Self-destructed Performance ------------- Evolutions (1) 500 Regions Visited (2) 400 Robots Destroyed (23) 115 Value Destroyed (391) 391 Prototype IDs (2) 40 Alien Tech Used (0) 0 Bonus (0) 0 TOTAL SCORE: 1446 Bonus ------- None Cogmind --------- Core Integrity 392/400 Matter 262/300 Energy 34/125 System Corruption 0% Temperature Cool (64) Movement Core (250) Ox4 Location -9/Materials Parts ------- > --- POWER (1) -------- Light Ion Engine > --- PROPULSION (2) --- (None) > --- UTILITY (4) ------ Small Storage Unit Signal Interpreter Seismic Detector Targeting Computer > --- WEAPON (2) ------- Light EM Pulse Cannon Light Assault Rifle > --- INVENTORY (8) ---- Light Ion Engine Seismic Detector Light EM Pulse Cannon Assault Rifle Axe Peak State ------------ > --- POWER ------------ Light Ion Engine > --- PROPULSION ------- Light Treads Light Treads > --- UTILITY ---------- Small Storage Unit Signal Interpreter Seismic Detector Targeting Computer > --- WEAPON ----------- Light Assault Rifle Axe > --- INVENTORY -------- Light Ion Engine Seismic Detector Light EM Pulse Cannon Light EM Pulse Cannon Assault Rifle [Rating: 11] Favorites ----------- Power Light Ion Engine Engine Light Ion Engine Propulsion Light Treads Treads Light Treads Utility Small Storage Unit Device Seismic Detector Storage Small Storage Unit Processor Signal Interpreter Weapon Assault Rifle Energy Gun Small Laser Energy Cannon Light EM Pulse Cannon Ballistic Gun Assault Rifle Slashing Weapon Axe Build | -11 -10 -9 ------- Run | Yrd Mat Mat Slots Evolved 2 | . . 2 Power . | . . . Propulsion . | . . . Utility 2 | . . 2 Weapon . | . . . Parts Attached 14 | 7 3 4 Power 2 | 1 1 . Engine 2 | 1 1 . Core . | . . . Reactor . | . . . Propulsion 2 | 2 . . Treads 2 | 2 . . Leg . | . . . Wheel . | . . . Hover . | . . . Flight . | . . . Utility 5 | 2 1 2 Device 2 | 1 1 . Storage 1 | 1 . . Processor 2 | . . 2 Hackware . | . . . Protection . | . . . Artifact . | . . . Weapon 5 | 2 1 2 Energy Gun 1 | 1 . . Energy Cannon 1 | . . 1 Ballistic Gun 2 | 1 1 . Ballistic Cannon . | . . . Launcher . | . . . Special Weapon . | . . . Impact Weapon . | . . . Slashing Weapon 1 | . . 1 Piercing Weapon . | . . . Special Melee Weapon . | . . . Unidentified Prototypes . | . . . Parts Lost 3 | . 1 2 Power . | . . . Propulsion 2 | . . 2 Utility 1 | . 1 . Weapon . | . . . Highest Loss Streak 2 | . 1 2 To Critical Strikes . | . . . Average Backups 3 | 1 4 5 Power . | . 1 1 Propulsion . | . . . Utility 1 | . 1 1 Weapon 1 | . 1 3 Tool/Special . | . . . Unused Backups 4 | . . 4 Power 1 | . . 1 Propulsion . | . . . Utility 1 | . . 1 Weapon 2 | . . 2 Tool/Special . | . . . Average Slot Usage (%) 97 | . 97 97 Engine 13 | . 14 11 Treads 26 | . 28 21 Device 11 | . 11 11 Storage 13 | . 14 11 Processor 6 | . . 20 Energy Gun 3 | . 5 . Ballistic Gun 21 | . 22 18 Peak Build Rating 11 | 7 7 11 Average Rating 7 | 5 6 9 On Entrance 4 | . 7 7 Avg Prop Armor Cover (%) . | . . . Naked Turns . | . . . Heaviest Build 13 | 12 12 13 Greatest Support 40 | 40 40 40 Greatest Overweight (x) . | . . . Average Overweight (x) . | . . . Largest Inventory Capacity 8 | 8 8 8 Average Capacity 7 | 7 8 8 Most Carried 7 | 2 7 6 Average Carried 3 | 1 4 5 Final Capacity 8 | 8 8 8 Final Carried 6 | 2 6 5 Class Distribution -------------------- 100% | Mutant Dominant Class ---------------- Mutant | -10/Materials Mutant | -9/Materials Resources | -11 -10 -9 ----------- Run | Yrd Mat Mat Matter Collected 484 | 302 182 . Remotely . | . . . Salvage Created 688 | 143 505 40 Parts 45 | 10 30 5 Haulers Intercepted . | . . . Recyclers Shooed . | . . . Parts Field Recycled . | . . . Retrieved Matter . | . . . Parts Self-Destructed . | . . . Prevented . | . . . Parts Restored . | . . . Kills | -11 -10 -9 ------- Run | Yrd Mat Mat Combat Hostiles Destroyed 16 | . 13 3 Guns 14 | . 13 1 Cannons 2 | . . 2 Classes Destroyed 6 | 2 4 . Worker 1 | . 1 . Tunneler 3 | 3 . . Recycler 2 | 1 1 . Watcher 1 | . 1 . Swarmer 9 | . 6 3 Grunt 7 | . 7 . Best Kill Streak 6 | 2 6 3 Combat Bots Only 5 | . 5 3 Max Kills in Single Turn 1 | 1 1 1 Gunslinging . | . . . Exploded . | . . . Melee . | . . . Uniques/NPCs Destroyed . | . . . Combat | -11 -10 -9 -------- Run | Yrd Mat Mat Hostile Shots Fired 89 | . 70 19 Missed 24 | . 18 6 Hits 65 | . 52 13 Projectile 65 | . 52 13 Critical Strikes 1 | . 1 . Damage Taken 602 | . 484 118 Core 77 | . 69 8 Absorbed by Shields . | . . . Core Remaining (%) 86 | 100 72 . Volleys Fired 63 | 13 42 8 Largest 2 | 2 2 2 Hottest 76 | 60 60 76 Shots Fired 123 | 26 84 13 Gun 118 | 26 84 8 Cannon 5 | . . 5 Launcher . | . . . Special . | . . . Kinetic 85 | 13 64 8 Thermal 33 | 13 20 . Explosive . | . . . Electromagnetic 5 | . . 5 Robot Hit Streak 16 | 4 10 16 Robot Miss Streak 4 | 2 4 2 Penetration Max . | . . . Secondary Targets 1 | . 1 . Max Gunslinging Chain 1 | . 1 . Shots Hit Robots 77 | 16 48 13 Core Hits 33 | 5 23 5 Critical Kills . | . . . Critical Parts Destroyed . | . . . Critical Strikes . | . . . Melee Attacks 8 | . . 8 Impact . | . . . Slashing 8 | . . 8 Piercing . | . . . Sneak Attacks 1 | . . 1 Combat Hostiles . | . . . Follow-up Attacks . | . . . Damage Inflicted 1040 | 200 591 249 Guns 834 | 200 580 54 Cannons 57 | . . 57 Explosions . | . . . Melee 138 | . . 138 Ramming 11 | . 11 . Kinetic 614 | 115 445 54 Thermal 220 | 85 135 . Explosive . | . . . Electromagnetic 57 | . . 57 Impact . | . . . Slashing 138 | . . 138 Piercing . | . . . Highest Corruption . | . . . Average Corruption . | . . . Corruption Purged . | . . . Corruption Blocked . | . . . Overload Shots . | . . . Overflow Damage 32 | . . 32 Projectiles . | . . . Explosions . | . . . Melee 32 | . . 32 Knockbacks . | . . . Impact . | . . . Kinetic . | . . . Secondary . | . . . Self-Inflicted Damage . | . . . Shots . | . . . Rammed 2 | . 2 . Targets Rammed 3 | . 3 . Kicked . | . . . Crushed 1 | . 1 . Highest Temperature 81 | . 30 81 Average Temperature 24 | . 13 47 Received Heat Transfer 165 | . 135 30 Siege Activations . | . . . Martial Activations . | . . . Shielding Activations . | . . . Robots Disrupted . | . . . Combat Hostiles . | . . . Robots Corrupted . | . . . Combat Hostiles . | . . . Parts Fried . | . . . Impact Corruptions . | . . . Robots Melted . | . . . Combat Hostiles . | . . . Parts Melted . | . . . Heat Transferred 500 | 200 300 . Parts Sabotaged . | . . . Parts Stolen . | . . . Parts Stripped . | . . . Power Chain Reactions . | . . . Alert | -11 -10 -9 ------- Run | Yrd Mat Mat Maximum Alert Level 1 | . 1 . Low Security (%) 90 | 100 83 100 Level 1 9 | . 16 . Level 2 . | . . . Level 3 . | . . . Level 4 . | . . . Level 5 . | . . . High Security . | . . . Max Security . | . . . Peak Influence 228 | 5 228 70 Initial 70 | . . 70 Average 64 | 1 101 25 Influence Increases 503 | 20 393 90 Destroy 0b10 Robot/C 320 | . 260 60 Destroy 0b10 Robot/NC 35 | 20 15 . Destroy Leader 62 | . 52 10 Successful Hack 5 | . 5 . Destroy Structure 6 | . 1 5 Lose Combat Pursuer 75 | . 60 15 Influence Decreases 448 | 20 225 203 Entered New Map 98 | . . 98 Time Decay 320 | 20 215 85 Lost Part 30 | . 10 20 Squads Dispatched 2 | . 2 . Investigation 2 | . 2 . Extermination . | . . . Reinforcement . | . . . Assault . | . . . Garrison . | . . . Intercept . | . . . Searches Triggered . | . . . Construction Impeded . | . . . Haulers Reinforced . | . . . Active Scanning Responses . | . . . Cargo Convoy Interrupts . | . . . Stealth | -11 -10 -9 --------- Run | Yrd Mat Mat Distress Signals 1 | . 1 . Communications Jammed . | . . . Distress Signals . | . . . Times Spotted 25 | . 19 6 Peak Tracking Total 6 | . 6 3 Tactical Retreats 4 | . 3 1 Traps | -11 -10 -9 ------- Run | Yrd Mat Mat Traps Triggered . | . . . Indirectly . | . . . Trap Hack Attempts . | . . . Triggered . | . . . Disarmed . | . . . Reprogrammed . | . . . Reused . | . . . Traps Extracted . | . . . Installed . | . . . Triggered . | . . . Machines | -11 -10 -9 ---------- Run | Yrd Mat Mat Machines Disabled . | . . . Max in Single Turn . | . . . Machines Repaired . | . . . Machines Dismantled . | . . . Machines Sabotaged . | . . . Overloaded Fab Kills . | . . . Hacking | -11 -10 -9 --------- Run | Yrd Mat Mat Machines Accessed 5 | . 4 1 Terminals 5 | . 4 1 Fabricators . | . . . Repair Stations . | . . . Recycling Units . | . . . Scanalyzers . | . . . Garrison Access . | . . . Total Hacks 14 | . 11 3 Successful 4 | . 3 1 Failed 10 | . 8 2 Catastrophic . | . . . Database Lockouts . | . . . Manual 3 | . 3 . Terminals 14 | . 11 3 Fabricators . | . . . Repair Stations . | . . . Recycling Units . | . . . Scanalyzers . | . . . Garrison Access . | . . . Terminal Hacks 4 | . 3 1 Prototype ID Bank 1 | . 1 . Branch Access Points 1 | . 1 . Locate Traps 1 | . 1 . Hauler Manifests 1 | . . 1 Fabricator Hacks . | . . . Repair Station Hacks . | . . . Recycling Unit Hacks . | . . . Scanalyzer . | . . . Garrison Access Hacks . | . . . Unauthorized Hacks . | . . . Terminals . | . . . Fabricators . | . . . Repair Stations . | . . . Recycling Units . | . . . Scanalyzers . | . . . Garrison Access . | . . . Data Cores Recovered . | . . . Used . | . . . Hacking Detections 5 | . 4 1 Full Trace Events 3 | . 3 . Feedback Events . | . . . Feedback Blocked . | . . . Robot Schematics Acquired . | . . . Robots Built . | . . . Authchips . | . . . Time . | . . . Total Robot Build Rating . | . . . Part Schematics Acquired . | . . . Parts Built . | . . . Authchips . | . . . Time . | . . . Total Part Build Rating . | . . . Part Studies Acquired . | . . . Parts Repaired . | . . . Time . | . . . Parts Recycled . | . . . Recycled Matter . | . . . Retrieved Matter . | . . . Retrieved Components . | . . . Parts Scanalyzed . | . . . Part Schematics Acquired . | . . . Parts Damaged . | . . . Bothacking | -11 -10 -9 ------------ Run | Yrd Mat Mat Used RIF Installer . | . . . Robots Hacked . | . . . Non-combat . | . . . Combat . | . . . Robot Hacks Applied . | . . . Relay Couplers Released . | . . . Fabnet Peak Effective % . | . . . Robots Rewired . | . . . Allies Hacked . | . . . Hacks Repelled . | . . . Allies | -11 -10 -9 -------- Run | Yrd Mat Mat Total Allies . | . . . Largest Group . | . . . Highest-Rated Group . | . . . Highest-Rated Ally . | . . . Total Orders . | . . . Ally Attacks . | . . . Total Damage . | . . . Kills . | . . . Allies Corrupted . | . . . Allies Melted . | . . . Intel | -11 -10 -9 ------- Run | Yrd Mat Mat Active Infowar (turns) 829 | 96 487 246 Seismic 829 | 96 487 246 Robot Analysis Total . | . . . Derelict Logs Recovered . | . . . Drone Launches . | . . . Drone Recoveries . | . . . Exploration | -11 -10 -9 ------------- Run | Yrd Mat Mat Turns Passed 1018 | 188 584 246 Spaces Moved 479 | 90 269 120 Core 6 | 6 . . Treads 473 | 84 269 120 Legs . | . . . Wheels . | . . . Hover . | . . . Flight . | . . . Fastest Speed 50 | 50 160 160 Average Speed 158 | 152 160 160 Slowest Speed 160 | 160 160 160 Overloaded Moves . | . . . Propulsion Burnouts . | . . . Robots Hopped . | . . . Potential Cave-ins . | . . . Cave-ins Triggered . | . . . Exploration Rate (%) 17 | 5 36 10 Regions Visited 2 Branch Regions . Pre-discovered Areas . | . . . Known Exits Taken . | . . . Unknown Exits Taken 2 | 1 1 . Scrap Searched . | . . . Spaces Dug 5 | . . 5 Terrain Destroyed 5 | . . 5 Melee 5 | . . 5 Projectile . | . . . AOE . | . . . Terrain Rammed . | . . . Walls Destroyed . | . . . Machines Disabled . | . . . Actions | -11 -10 -9 --------- Run | Yrd Mat Mat Total 599 | 111 341 147 Wait 23 | . 18 5 Move 477 | 89 268 120 Hop . | . . . Pick Up 8 | 2 5 1 Fast Attach 9 | 7 1 1 Attach 2 | . 1 1 Detach . | . . . Swap 3 | . 1 2 Drop 3 | . 2 1 Fire 63 | 13 42 8 Melee 8 | . . 8 Ram . | . . . Kick . | . . . Crush 3 | . 3 . Escape Stasis . | . . . Rewire . | . . . Trap . | . . . Miscellaneous . | . . . Route ------- -11/Scrapyard -10/Materials (discovered 2 exits: *Mat / *Min) -9/Materials History --------- Turn | Location | Event 7 | -11/Scrapyard | Discovered new exit (range 15) 189 | -11/Scrapyard | Entered Materials 266 | -10/Materials | Identified exit to Mines 304 | -10/Materials | Build established: Mutant 623 | -10/Materials | Discovered new exit (range 10) 773 | -10/Materials | Entered another Materials area 773 | -9/Materials | Evolved 2 slots: Utility x2 1019 | -9/Materials | Self-destructed Last Messages --------------- 1x Matter (95) A-02 Transporter 2x Imp. Assault Rifle 2x Hvy. Ion Engine (2 escorts) A-02 Transporter 6x Salvage Targeting Computer Acquired Axe. Dropped Hvy. Hammer. Destroyed Heat Sink. Sneak attack on U-05 Engineer. Destroyed Wheel. U-05 Engineer builds a Wall. S-10 Pest destroyed. Lgt. Treads destroyed. K-01 Serf collects debris. S-10 Pest destroyed. Door malfunctions. Lgt. Treads destroyed. U-05 Engineer repairs door. Map ----- +----------------------------------------------------+ | | | | | | | | | | | ???????????????????????????????????????####??????? | | ??????????????????????????????????????# ??????? | | ???????????????????????????????######## "" ####### | | ???????????????????????????????# T # "T ## | | ???????????????????????????????# # "" ## | | ???????????????????????????##### # ## "" | | ?????????????????########### # #!! ## "" | | ?????????????????# # # #!! [##! "" | | ?????????????????# # # # ## | | ?????????????????# + ###+######+######+# | | ?????????????????# # | | ?????????????????# # | | ?????????????????# # | | ?????????????????# #######+#### ##### | | ?????????????????# #??# #?# #???? | | ?????????????????###########??# #?#!!!!//#???? | | ?????????????????????########## """#?#!!!!//#???? | | ?????????????????????#!]] # """#?########???? | | ?????????????????????#!] # """#????????????? | | ?????????????????????#]] # #????????????? | | ?????????????????????# @ # #????????????? | | ?????????????? ar =#######????????????? | | ?????????????# """ # """ u/g%= ?????????????? | | ????????????????"""??# """ [#######????????????? | | ?????????????????????# """ #??????????????????? | | ?????????????????????# #??????????????????? | | ?????????????????????##########??????????????????? | | ?????????????????????????????????????????????????? | | ?????????????????????????????????????????????????? | | ?????????????????????????????????????????????????? | | ?????????????????????????????????????????????????? | | ?????????????????????????????????????????????????? | | ?????????????????????????????????????????????????? | | ?????????????????????????????????????????????????? | | ?????????????????????????????????????????????????? | | ?????????????????????????????????????????????????? | | ?????????????????????????????????????????????????? | | ?????????????????????????????????????????????????? | | ?????????????????????????????????????????????????? | | ?????????????????????????????????????????????????? | | ?????????????????????????????????????????????????? | | ?????????????????????????????????????????????????? | | ?????????????????????????????????????????????????? | | ?????????????????????????????????????????????????? | | ?????????????????????????????????????????????????? | +----------------------------------------------------+ Best States ------------- Heat Dissipation 28 Energy Generation 10 Energy Capacity 125 Matter Stores 300 Matter Capacity 300 Sight Range 16 Terrain Scan Density 10 Evasion (%) 40 Targeting Accuracy 5 Recoil Reduction 2 Item Schematics ----------------- None Robot Schematics ------------------ None Fabricated ------------ Nothing Repaired ---------- Nothing Studied --------- None Alien Tech Used ----------------- None Achievements -------------- None Challenges ------------ None Game ------ Seed MediumRemoteGuard Manual? 0 Play Time 00:11:10 Cumulative 8.2 hours Start 2025.12.30 @ 18:49:40 End 2025.12.30 @ 18:58:19 Sessions 1 Manual Loads 0 Difficulty Rogue Special Mode None Game No. 14 Rogue 14 Adventurer 0 Explorer 0 Win Type - Total 0 Types 0/0/0/0/0/0/0/0/0/0 Lore% 21 Gallery% 13 Achievement% 13 Wizard Run 0 Options --------- Layout 1 ASCII 0 Keyboard 1 Movement Numpad Keybinds 0 Fullscreen 1 Font 24/Smallcaps Map View 50x35 Zoom Use 0% Tactical HUD 0 Map Filters NONE Filters NONE Steam 1 RUN: 4bae844b-1db3-40da-9c77-ac79786d6bf5